bitfinex/quotes_ETHUSD_20240907
["timestamp","ask_amount","ask_price","bid_price","bid_amount"]
[1725689473825,4.40567,2269.8,2269.6,19.42308921]
[1725689474388,4.40586,2269.7,2269.6,19.42308921]
[1725689475215,4.40619,2269.6,2269.2,19.42308921]
[1725689476448,4.40619,2269.6,2269.3,0.08812243]
[1725689476600,4.40619,2269.6,2269.3,3.97345908]
[1725689478399,4.40619,2269.6,2269.3,3.88533665]
[1725689478634,4.40619,2269.6,2269.3,3.97345906]
[1725689478925,4.40619,2269.6,2269.3,3.88533665]
[1725689479331,4.40582,2269.8,2269.3,8.29183665]
[1725689480510,4.40582,2269.8,2269.4,0.08811424]
[1725689480997,4.40557,2269.9,2269.5,6.72081]
[1725689481200,0.46125882,2270.1,2269.6,23.91723885]
[1725689481440,0.46125882,2270.1,2269.9,2.3146]
[1725689481598,4.4048,2270.3,2269.9,2.40269897]
[1725689481812,8.80961,2270.3,2270.0,19.42308921]
[1725689482201,8.8096,2270.3,2270.0,19.42308921]
[1725689482404,4.4049,2270.2,2270.0,19.42308921]
[1725689483504,4.40509,2270.1,2270.0,19.42308921]
[1725689485034,4.40509,2270.1,2270.0,19.53894889]
[1725689487317,4.40509,2270.1,2270.0,21.49284378]
[1725689487530,4.4049,2270.2,2270.0,21.49284378]
[1725689489243,4.40509,2270.1,2270.0,21.49284378]
[1725689489719,11.69028,2270.1,2270.0,19.53894889]
[1725689489903,9.36018,2270.1,2270.0,19.53894889]
[1725689492261,8.81018,2270.1,2270.0,19.53894889]
[1725689494106,15.76527,2270.1,2270.0,19.53894889]
[1725689494311,18.01528,2270.1,2270.0,19.53894889]
[1725689499513,9.36018,2270.1,2270.0,19.53894889]
[1725689499714,8.81018,2270.1,2270.0,19.53894889]
[1725689500016,9.36018,2270.1,2270.0,19.53894889]
[1725689500416,9.36018,2270.1,2270.0,0.11585968]
[1725689500417,18.09537,2270.1,2270.0,0.11585968]
[1725689500620,22.50046,2270.1,2270.0,0.11585968]
[1725689500846,8.81134,2269.8,2269.7,19.42308921]
[1725689501157,9.36134,2269.8,2269.7,19.42308921]
[1725689501463,8.81134,2269.8,2269.7,19.42308921]
[1725689501653,4.40567,2269.8,2269.7,19.42308921]
[1725689502158,4.40545,2270.0,2269.7,19.42308921]
[1725689502159,4.40549,2269.9,2269.7,19.42308921]
[1725689502357,4.40549,2269.9,2269.7,21.36539813]
[1725689503352,4.40549,2269.9,2269.7,19.42308921]
[1725689504425,4.40567,2269.8,2269.7,19.42308921]
[1725689506879,4.40549,2269.9,2269.7,19.42308921]
[1725689507092,4.40549,2269.9,2269.7,21.88258921]
[1725689508506,8.81106,2269.9,2269.7,21.88258921]
[1725689508848,4.40549,2269.9,2269.7,21.88258921]
[1725689509145,8.81106,2269.9,2269.7,21.88258921]
[1725689509394,4.40549,2269.9,2269.7,21.88258921]
[1725689510081,8.81111,2269.9,2269.7,24.07084813]
[1725689510284,4.40549,2269.9,2269.7,24.07084813]
[1725689510579,4.40567,2269.8,2269.7,21.61134813]
[1725689510786,4.40567,2269.8,2269.7,19.42308921]
[1725689511452,9.36134,2269.8,2269.7,19.42308921]
[1725689511954,4.40567,2269.8,2269.7,19.42308921]
[1725689513565,4.4055,2269.9,2269.7,19.42308921]
[1725689514886,4.40523,2270.1,2269.8,2.4595]
[1725689515091,4.86616142,2270.2,2269.9,2.18825892]
[1725689515391,4.40499,2270.2,2270.0,0.08809677]
[1725689515694,4.40499,2270.2,2270.0,0.19883804]
[1725689515879,4.40499,2270.2,2270.0,2.62580666]
[1725689516697,4.40499,2270.2,2270.0,2.53770989]
[1725689520057,4.40499,2270.2,2270.1,19.42308921]
[1725689520298,4.40499,2270.2,2270.1,19.5337237]
[1725689527420,15.59134,2270.2,2270.1,0.11063449]
[1725689527619,4.40606,2269.6,2269.5,6.5379]
[1725689528841,6.78216,2269.8,2269.5,6.5379]
[1725689528842,4.40588,2269.7,2269.5,6.5379]
[1725689529038,4.40588,2269.7,2269.5,7.42557]
[1725689529732,4.40588,2269.7,2269.6,0.10372258]
[1725689532177,15.59402,2269.7,2269.6,0.10372258]
[1725689532479,21.29920485,2269.7,2269.6,0.09361835]
[1725689532639,24.52669181,2269.7,2269.6,8.35e-06]
[1725689532841,24.52669181,2269.7,2269.6,8.01e-06]
[1725689533050,28.05055049,2269.7,2269.6,1.68e-06]
[1725689533238,11.19006,2269.2,2268.9,6.5379]
[1725689533456,13.22109,2269.1,2269.0,19.42308921]
[1725689533657,14.835839,2269.1,2269.0,19.42308921]
[1725689533962,10.428809,2269.1,2269.0,19.42308921]
[1725689534167,8.81406,2269.1,2269.0,19.42308921]
[1725689540081,8.81406,2269.1,2269.0,19.50606535]
[1725689540474,11.19046,2269.1,2269.0,0.08297614]
[1725689540989,8.81551,2268.8,2268.6,19.42308921]
[1725689541295,8.81551,2268.8,2268.7,19.42308921]
[1725689541440,4.40772,2268.8,2268.7,19.42308921]
[1725689543409,8.81547,2268.8,2268.7,19.42308921]
[1725689543610,10.375382,2268.8,2268.7,19.42308921]
[1725689544120,14.783132,2268.8,2268.7,19.42308921]
[1725689544270,14.783132,2268.8,2268.2,19.42308921]
[1725689544271,4.40852,2268.4,2268.2,19.42308921]
[1725689544679,4.35852,2268.4,2268.2,19.42308921]
[1725689544884,4.40821,2268.5,2268.3,0.08455073]
[1725689545272,8.81654,2268.5,2268.2,19.42308921]
[1725689545475,8.81654,2268.5,2268.4,0.08455073]
[1725689545674,8.81654,2268.5,2268.2,22.04019413]
[1725689545882,8.81654,2268.5,2268.4,0.08455073]
[1725689546100,4.40839,2268.4,2268.3,19.42308921]
[1725689547114,8.81678,2268.4,2268.3,19.42308921]
[1725689550423,8.81678,2268.4,2268.3,19.41308921]
[1725689551241,0.46121556,2268.9,2268.4,2.4424]
[1725689551446,4.40732,2269.0,2268.6,2.4424]
[1725689551742,4.40699,2269.2,2268.7,4.495934]
[1725689551916,4.40699,2269.2,2268.8,1.1346244]
[1725689552241,4.40707,2269.1,2268.8,1.1346244]
[1725689554046,4.40707,2269.1,2268.9,0.08393672]
[1725689554267,4.40695,2269.2,2268.9,0.08393672]
[1725689554474,8.81393,2269.2,2268.9,0.08393672]
[1725689554845,4.40695,2269.2,2268.9,0.08393672]
[1725689556052,8.81389,2269.2,2269.0,19.41308921]
[1725689556245,4.40694,2269.2,2269.0,19.41308921]
[1725689556445,4.40667,2269.3,2269.1,0.08353634]
[1725689556651,4.40667,2269.3,2269.2,19.41308921]
[1725689557072,4.40667,2269.3,2269.2,19.4966389]
[1725689557695,8.8134,2269.3,2269.2,19.4966389]
[1725689557858,20.09559866,2269.3,2269.2,19.4966389]
[1725689558048,24.50232866,2269.3,2269.2,19.4966389]
[1725689558366,24.50232866,2269.3,2269.2,19.41308921]
[1725689558682,23.84855737,2269.3,2269.2,19.4966389]
[1725689560484,19.44182737,2269.3,2269.2,19.4966389]
[1725689561953,19.44182737,2269.3,2269.2,0.08354969]
[1725689562155,4.40752,2268.9,2268.6,6.5379]
[1725689562379,4.40752,2268.9,2268.7,19.41308921]
[1725689565510,2.3036,2268.8,2268.2,19.41308921]
[1725689565660,7.04771736,2268.3,2267.2,0.92301219]
[1725689565863,7.04771736,2268.3,2266.8,6.5379]
[1725689565864,6.71413,2267.3,2266.1,3.82691829]
[1725689566206,4.41145,2266.9,2266.1,6.85521]
[1725689566388,4.41129,2267.0,2266.2,0.08823847]
[1725689566562,4.41129,2267.0,2266.1,6.85521]
[1725689566563,4.41079,2267.2,2266.7,0.08823167]
[1725689566759,6.71337,2267.7,2266.7,0.08823167]
[1725689566760,6.40996,2267.6,2266.7,6.94231421]
[1725689566962,6.40996,2267.6,2266.8,1.22351239]
[1725689567209,6.40996,2267.6,2266.9,0.08821056]
[1725689567659,4.40922,2268.0,2267.0,0.08821058]
[1725689567865,0.19504114,2268.4,2267.2,3.52385868]
[1725689567866,4.40876,2268.3,2267.2,3.52385868]
[1725689568065,2.3255,2267.2,2266.6,2.69196319]
[1725689568370,4.41055,2267.3,2266.7,0.08822051]
[1725689568572,4.40996,2267.6,2266.8,4.41146]
[1725689568771,4.40996,2267.6,2266.9,0.08820939]
[1725689568971,4.41019,2267.5,2266.9,0.08820939]
[1725689569191,4.40999,2267.6,2266.9,0.08820939]
[1725689569932,7.40924,2268.0,2267.1,3.52385868]
[1725689570233,4.40938,2267.9,2267.2,0.52036587]
[1725689570521,4.40938,2267.9,2267.3,0.08819427]
[1725689570689,4.40938,2267.9,2267.2,0.52036587]
[1725689570884,4.40903,2268.1,2267.2,0.52036587]
[1725689571084,4.40903,2268.1,2267.4,4.41033]
[1725689571085,4.40901,2268.1,2267.4,4.41033]
[1725689571285,7.19492704,2268.4,2267.6,2.4008]
[1725689571286,6.73389,2268.4,2267.6,2.4008]
[1725689571614,6.73389,2268.4,2267.7,0.0881853]
[1725689572523,4.40899,2268.1,2267.6,2.4008]
[1725689574818,4.40899,2268.1,2267.7,0.07925928]
[1725689575002,4.40955,2267.8,2267.7,0.07925928]
[1725689575193,4.40955,2267.8,2267.3,6.5379]
[1725689575194,4.40999,2267.6,2267.3,6.5379]
[1725689576326,8.82012,2267.6,2267.3,6.5379]
[1725689576758,4.41014,2267.5,2267.3,6.5379]
[1725689578447,4.40999,2267.6,2267.3,6.5379]
[1725689579023,4.41016,2267.5,2267.3,6.5379]
[1725689579225,4.40968,2267.8,2267.3,7.20051084]
[1725689579427,4.4098,2267.7,2267.3,7.20051084]
[1725689579634,4.4098,2267.7,2267.3,6.5379]
[1725689579943,4.4098,2267.7,2267.4,19.41308921]
[1725689580849,8.81969,2267.7,2267.4,19.41308921]
[1725689581127,4.4098,2267.7,2267.4,19.41308921]
[1725689581334,8.81969,2267.7,2267.4,19.41308921]
[1725689581557,4.40995,2267.6,2267.4,19.41308921]
[1725689581893,8.81968,2267.7,2267.4,19.41308921]
[1725689582196,8.81966,2267.7,2267.4,19.41308921]
[1725689582637,4.4098,2267.7,2267.4,19.41308921]
[1725689583314,8.81966,2267.7,2267.4,19.41308921]
[1725689584038,4.40948,2267.9,2267.5,0.08819756]
[1725689584237,4.40962,2267.8,2267.4,23.75519813]
[1725689585932,4.40962,2267.8,2267.5,19.41308921]
[1725689589021,4.40948,2267.9,2267.4,4.34210892]
[1725689589022,4.40948,2267.9,2267.6,19.41308921]
[1725689589201,4.40948,2267.9,2267.6,22.31783069]
[1725689589597,8.81827,2268.1,2267.6,22.31783069]
[1725689589836,8.81827,2268.1,2267.7,0.07570894]
[1725689590035,8.81827,2268.1,2267.7,0.16389188]
[1725689590036,4.40909,2268.1,2267.7,0.16389188]
[1725689590232,4.40887,2268.2,2267.7,2.40324507]
[1725689590594,4.40872,2268.3,2267.7,6.81289507]
[1725689590798,0.46090515,2268.4,2268.0,4.40907]
[1725689591198,0.46090515,2268.4,2268.1,0.07536256]
[1725689591797,0.46090515,2268.4,2267.9,6.74093]
[1725689591993,0.46090515,2268.4,2268.2,0.07536256]
[1725689592224,0.46090515,2268.4,2267.9,2.3316]
[1725689592225,9.27768515,2268.4,2268.3,19.41308921]
[1725689592407,9.27768515,2268.4,2268.3,19.48845177]
[1725689593333,8.81678,2268.4,2268.3,19.48845177]
[1725689594620,13.22517,2268.4,2268.3,19.48845177]
[1725689594826,14.983477,2268.4,2268.3,19.48845177]
[1725689595538,15.533477,2268.4,2268.3,19.48845177]
[1725689597602,14.983477,2268.4,2268.3,19.48845177]
[1725689598142,14.983477,2268.4,2268.3,0.07536256]
[1725689598460,4.40936,2267.9,2267.8,19.41308921]
[1725689603252,4.87032717,2267.9,2267.8,19.41308921]
[1725689604618,0.46096717,2267.9,2267.8,19.41308921]
[1725689604815,0.46096717,2267.9,2267.8,21.66265424]
[1725689608260,0.46096717,2267.9,2267.8,24.04225424]
[1725689611345,4.87032717,2267.9,2267.8,21.86778532]
[1725689611467,4.87032717,2267.9,2267.8,19.48818532]
[1725689616111,9.27968717,2267.9,2267.8,19.48818532]
[1725689617879,9.27968717,2267.9,2267.8,19.47718532]
[1725689620580,0.46096717,2267.9,2267.8,34.51727934]
[1725689620773,4.4074,2269.0,2268.5,4.40816]
[1725689621009,4.40695,2269.2,2268.7,2.3796]
[1725689621200,4.40658,2269.4,2268.8,26.0846829]
[1725689621402,4.40657,2269.4,2268.8,26.15919297]
[1725689621602,4.40657,2269.4,2268.9,4.40741]
[1725689621916,8.81317,2269.4,2269.0,0.08813147]
[1725689622139,8.81317,2269.4,2269.1,19.40208921]
[1725689622440,4.40657,2269.4,2269.1,20.68267734]
[1725689622609,4.86707865,2269.5,2269.2,2.4530318]
[1725689622816,4.86707865,2269.5,2269.2,2.54115892]
[1725689623224,4.40626,2269.5,2269.2,2.54115892]
[1725689623435,4.40646,2269.4,2269.2,2.54115892]
[1725689623732,4.40611,2269.6,2269.3,19.40208921]
[1725689623936,8.81227,2269.6,2269.3,19.40208921]
[1725689624144,4.40626,2269.5,2269.4,0.07168781]
[1725689628035,4.40626,2269.5,2269.4,19.47377702]
[1725689628534,4.40625,2269.5,2269.4,19.47377702]
[1725689633267,4.8670054,2269.5,2269.4,19.47377702]
[1725689637552,0.4607554,2269.5,2269.4,23.51130392]
[1725689637751,0.4607554,2269.5,2269.4,35.8480626]
[1725689637752,0.01457382,2269.5,2269.4,35.8480626]
[1725689638267,0.00046101,2269.5,2269.4,35.8480626]
[1725689638416,0.00046101,2269.5,2269.4,40.2545126]
[1725689639233,4.40444,2270.5,2269.9,4.40539]
[1725689639519,4.40444,2270.5,2270.0,19.91349576]
[1725689640250,8.80884,2270.5,2270.0,19.91349576]
[1725689640451,4.4044,2270.5,2270.0,19.91349576]
[1725689640809,0.46050621,2270.7,2270.0,19.91349576]
[1725689640931,8.81018,2270.1,2270.0,19.47295676]
[1725689641539,11.07078,2270.1,2270.0,19.47295676]
[1725689643826,8.81018,2270.1,2270.0,19.47295676]
[1725689644032,4.40509,2270.1,2270.0,21.66663244]
[1725689644225,4.40501,2270.2,2270.0,21.66663244]
[1725689644458,8.81003,2270.2,2270.0,21.66663244]
[1725689645473,4.40463,2270.4,2270.1,19.4016282]
[1725689645651,4.40463,2270.4,2270.2,0.07014487]
[1725689645979,4.40463,2270.4,2270.2,1.3440412]
[1725689647452,8.80925,2270.4,2270.2,1.3440412]
[1725689647650,8.80922,2270.4,2270.2,1.3440412]
[1725689648052,8.8092,2270.4,2270.2,1.3440412]
[1725689648254,4.40426,2270.6,2270.2,20.83375902]
[1725689648455,4.40426,2270.6,2270.2,20.7456694]
[1725689648753,4.40452,2270.4,2270.2,20.7456694]
[1725689650391,8.8094,2270.3,2270.2,19.47177307]
[1725689650755,4.4047,2270.3,2270.2,19.47177307]
[1725689651167,4.40431,2270.5,2270.2,19.47177307]
[1725689651402,4.40431,2270.5,2270.3,0.08808442]
[1725689651704,4.86379514,2271.1,2270.4,19.46975208]
[1725689651905,4.40373,2270.9,2270.5,23.89400845]
[1725689652414,4.40373,2270.9,2270.6,0.06812388]
[1725689652570,4.86379514,2271.1,2270.6,6.88366434]
[1725689652768,4.40336,2271.0,2270.7,2.62852925]
[1725689652967,9.26710514,2271.1,2270.8,0.08806561]
[1725689653208,9.26710514,2271.1,2270.8,0.15595029]
[1725689653209,4.86374514,2271.1,2270.8,0.15595029]
[1725689653413,9.26706514,2271.1,2270.8,0.15595029]
[1725689653775,4.86374514,2271.1,2270.8,0.15595029]
[1725689654006,4.86374514,2271.1,2270.8,1.10714524]
[1725689654313,4.40334,2271.0,2270.8,1.10714524]
[1725689654670,4.86374514,2271.1,2270.8,1.10714524]
[1725689654869,4.86374514,2271.1,2270.9,19.4016282]
[1725689655071,4.86374514,2271.1,2271.0,19.46928699]
[1725689657147,9.26699514,2271.1,2271.0,19.46928699]
[1725689657353,11.53569514,2271.1,2271.0,19.46928699]
[1725689657646,9.26699514,2271.1,2271.0,19.46928699]
[1725689660938,9.26699514,2271.1,2271.0,0.06765879]
[1725689661162,4.40337,2271.0,2270.4,23.8061282]
[1725689661338,4.40337,2271.0,2270.5,22.8872036]
[1725689662048,4.40374,2270.8,2270.5,22.8872036]
[1725689662360,4.40354,2270.9,2270.6,2.3234]
[1725689662565,4.40337,2271.0,2270.7,0.08806902]
[1725689662764,4.40337,2271.0,2270.7,1.77785041]
[1725689662966,8.80681,2271.0,2270.7,1.77785041]
[1725689663130,4.40337,2271.0,2270.7,1.77785041]
[1725689663329,8.8068,2271.0,2270.7,1.77785041]
[1725689663765,8.8068,2271.0,2270.7,1.68978139]
[1725689663965,4.40355,2270.9,2270.8,0.40131814]
[1725689664757,8.80641,2271.1,2270.8,0.40131814]
[1725689664953,8.80641,2271.1,2270.9,0.0649384]
[1725689665161,4.40316,2271.1,2271.0,19.4016282]
[1725689665527,4.40316,2271.1,2271.0,19.4665666]
[1725689666155,8.80641,2271.1,2271.0,19.4665666]
[1725689669834,8.80641,2271.1,2271.0,0.0649384]
[1725689670256,8.80708,2270.9,2270.8,19.4016282]
[1725689671370,2.0,2271.7,2270.8,19.4016282]
[1725689671371,4.39911,2273.2,2271.6,2.4828]
[1725689671533,4.4235,2273.3,2271.6,2.4828]
[1725689671534,4.3998,2272.9,2271.9,4.40147]
[1725689671867,2.022977,2273.0,2272.3,4.4007]
[1725689672075,2.022977,2273.0,2272.4,0.0880018]
[1725689672367,6.422457,2273.0,2272.4,0.0880018]
[1725689672740,4.39968,2272.9,2272.4,0.0880018]
[1725689673375,5.4818847,2272.9,2272.4,0.0880018]
[1725689673582,5.4818847,2272.9,2271.9,6.88428]
[1725689673777,4.40015,2272.7,2271.9,11.28576]
[1725689673992,4.40015,2272.7,2271.9,6.88428]
[1725689674289,4.40026,2272.6,2271.9,6.88428]
[1725689674449,0.880041,2272.5,2271.9,6.88428]
[1725689675063,5.280521,2272.5,2271.9,2.4828]
[1725689675374,5.280521,2272.5,2271.8,4.84406]
[1725689675576,9.681071,2272.5,2271.8,4.84406]
[1725689675774,5.280521,2272.5,2271.8,4.84406]
[1725689675988,5.280521,2272.5,2271.9,4.40156]
[1725689676193,0.87867766,2272.5,2271.9,4.40156]
[1725689677687,0.87867766,2272.5,2272.0,4.40139]
[1725689678892,0.87867766,2272.5,2272.1,19.4016282]
[1725689679471,4.39982,2272.9,2272.3,4.4007]
[1725689679657,4.39982,2272.9,2272.3,8.80141]
[1725689679984,4.39982,2272.9,2272.4,4.46152539]
[1725689680201,4.39982,2272.9,2272.5,19.4016282]
[1725689680555,0.022977,2273.0,2272.5,23.8020382]
[1725689680771,1.1475067,2273.0,2272.6,0.06091539]
[1725689681793,1.1475067,2273.0,2272.6,4.46111539]
[1725689682219,1.1475067,2273.0,2272.6,0.06091539]
[1725689682220,8.79965,2272.9,2272.6,0.06091539]
[1725689682423,9.34965,2272.9,2272.6,0.06091539]
[1725689682621,1.04971567,2272.8,2272.4,19.4016282]
[1725689682786,1.04971567,2272.8,2272.7,0.06091539]
[1725689682985,1.59971567,2272.8,2272.4,19.4016282]
[1725689683206,1.04971567,2272.8,2272.7,0.06091539]
[1725689683412,1.59971567,2272.8,2272.4,19.4016282]
[1725689683607,1.1475067,2273.0,2272.7,0.06091539]
[1725689683813,0.022977,2273.0,2272.4,23.8021482]
[1725689683984,4.39966,2272.9,2272.8,0.0605041]
[1725689684196,4.39966,2272.9,2272.4,23.8021482]
[1725689684402,4.39966,2272.9,2272.8,0.0605041]
[1725689684886,4.39966,2272.9,2272.5,19.4016282]
[1725689684887,4.94966,2272.9,2272.5,19.4016282]
[1725689685125,5.5792137,2272.9,2272.6,0.0605041]
[1725689685511,4.94985,2272.8,2272.6,0.0605041]
[1725689688503,5.41020386,2272.8,2272.6,0.0605041]
[1725689688708,0.46035386,2272.8,2272.6,0.0605041]
[1725689690733,4.86022386,2272.8,2272.6,19.4621323]
[1725689690938,5.90645032,2272.8,2272.6,19.4621323]
[1725689691088,4.40005,2272.7,2272.6,19.4621323]
[1725689691428,4.95005,2272.7,2272.6,19.4621323]
[1725689693841,5.90645032,2272.8,2272.6,19.4621323]
[1725689694526,10.30641032,2272.8,2272.6,19.4621323]
[1725689694731,5.90645032,2272.8,2272.6,19.4621323]
[1725689694938,4.40005,2272.7,2272.6,19.4621323]
[1725689695528,4.86022386,2272.8,2272.6,19.4621323]
[1725689695902,9.26019386,2272.8,2272.6,19.4621323]
[1725689696098,4.40005,2272.7,2272.6,19.4621323]
[1725689696305,9.3501,2272.7,2272.6,0.0605041]
[1725689696524,4.40056,2272.5,2272.2,25.9395282]
[1725689696846,4.40063,2272.4,2272.3,0.06074291]
[1725689697202,4.40046,2272.5,2272.1,19.4016282]
[1725689697429,8.80101,2272.5,2272.3,0.06072964]
[1725689697634,4.40046,2272.5,2272.1,19.4016282]
[1725689697833,4.40046,2272.5,2272.4,0.06072964]
[1725689698061,9.35099,2272.5,2272.1,19.4016282]
[1725689698207,8.80099,2272.5,2272.4,0.06072964]
[1725689698410,9.35099,2272.5,2272.1,19.4016282]
[1725689699041,4.40064,2272.4,2272.2,0.06072964]
[1725689699240,4.95046,2272.5,2272.2,0.06072964]
[1725689700039,9.35099,2272.5,2272.2,0.06072964]
[1725689700213,4.40046,2272.5,2272.2,0.14874406]
[1725689700414,4.40046,2272.5,2272.2,0.06072964]
[1725689700829,4.40046,2272.5,2272.2,0.14874189]
[1725689701351,4.40027,2272.6,2272.2,0.14874189]
[1725689701651,4.40027,2272.6,2272.2,0.14873897]
[1725689701938,4.40045,2272.5,2272.2,0.06072964]
[1725689702821,4.40045,2272.5,2272.3,19.4016282]
[1725689703146,4.40045,2272.5,2272.4,0.06094194]
[1725689703548,4.40019,2272.7,2272.4,0.06094194]
[1725689704044,4.40015,2272.7,2272.4,0.06094194]
[1725689706240,8.8003,2272.7,2272.4,0.06094194]
[1725689707112,4.40026,2272.6,2272.4,0.06094194]
[1725689707314,8.80088,2272.5,2272.4,0.06094194]
[1725689709362,4.40077,2272.4,2272.1,19.4016282]
[1725689709919,4.40077,2272.4,2272.2,0.06088152]
[1725689710414,4.40082,2272.3,2272.2,0.06088152]
[1725689711914,5.280979,2272.3,2272.2,0.06088152]
[1725689712117,2.4407,2272.1,2271.7,6.5379]
[1725689712315,2.4407,2272.1,2271.0,2.4414]
[1725689712316,8.80514,2271.4,2271.3,6.5379]
[1725689712515,4.40295,2271.2,2271.1,19.4016282]
[1725689712767,4.40334,2271.0,2270.9,19.4016282]
[1725689713561,4.40327,2271.1,2270.5,22.2853282]
[1725689713711,4.40327,2271.1,2270.6,26.91504]
[1725689714049,4.40335,2271.0,2270.6,22.42298489]
[1725689714220,4.40356,2270.9,2270.6,22.42298489]
[1725689715352,8.8066,2271.1,2270.7,0.08806921]
[1725689715854,4.40337,2271.0,2270.7,0.08806921]
[1725689716543,4.40337,2271.0,2270.6,22.42298489]
[1725689716720,4.40337,2271.0,2270.7,0.0880674]
[1725689717758,4.40337,2271.0,2270.8,19.4016282]
[1725689718453,4.40336,2271.0,2270.8,19.4016282]
[1725689718950,4.40327,2271.1,2270.8,19.4016282]
[1725689719259,4.40334,2271.0,2270.8,19.4016282]
[1725689719425,4.40354,2270.9,2270.8,19.4016282]
[1725689719772,4.40354,2270.9,2270.8,19.45479932]
[1725689720283,8.80652,2271.1,2270.8,19.45479932]
[1725689720490,4.40133,2272.1,2270.8,19.45479932]
[1725689720491,4.422567,2273.0,2272.0,2.8837]
[1725689720638,4.422527,2273.0,2272.2,4.40083]
[1725689720844,4.39967,2272.9,2272.2,8.55001026]
[1725689721148,4.39981,2272.9,2272.3,0.05407318]
[1725689721484,5.3046997,2273.0,2272.3,4.45487318]
[1725689722575,11.40098472,2273.0,2272.3,4.45487318]
[1725689722738,5.3046997,2273.0,2272.3,4.45487318]
[1725689722940,5.3046997,2273.0,2272.3,5.39680912]
[1725689723348,4.422527,2273.0,2272.3,0.99600912]
[1725689723683,4.39999,2272.8,2272.3,0.99600912]
[1725689724363,8.79996,2272.8,2272.3,0.99600912]
[1725689724562,4.39997,2272.8,2272.3,0.99600912]
[1725689724880,4.39996,2272.8,2272.3,0.99600912]
[1725689725381,4.39996,2272.8,2272.4,0.60900113]
[1725689725547,4.39996,2272.8,2272.5,0.05279983]
[1725689725743,4.39996,2272.8,2272.6,19.4016282]
[1725689725744,8.79991,2272.8,2272.6,19.4016282]
[1725689726009,4.39995,2272.8,2272.7,0.05272027]
[1725689728987,9.34994,2272.8,2272.7,0.05272027]
[1725689729297,10.7271807,2272.8,2272.7,0.05272027]
[1725689730018,4.40046,2272.5,2272.1,19.4016282]
[1725689730462,8.80101,2272.5,2272.1,19.4016282]
[1725689730661,4.40046,2272.5,2272.1,19.4016282]
[1725689730863,4.40064,2272.4,2272.2,3.27822182]
[1725689731191,8.80128,2272.4,2272.3,19.4016282]
[1725689735765,4.40091,2272.3,2271.9,19.4016282]
[1725689735966,4.40091,2272.3,2272.0,19.4016282]
[1725689736374,4.40102,2272.2,2272.0,19.4016282]
[1725689738206,0.46099903,2272.5,2272.0,21.78196802]
[1725689738403,4.40016,2272.7,2272.2,6.71309]
[1725689738604,4.40016,2272.7,2272.3,0.08800747]
[1725689738808,4.40027,2272.6,2272.3,0.08800747]
[1725689739099,4.40045,2272.5,2272.3,0.08800747]
[1725689739316,4.40016,2272.7,2272.3,0.68012475]
[1725689739599,4.4003,2272.6,2272.3,0.0880075]
[1725689739800,4.4003,2272.6,2272.4,0.05207427]
[1725689740103,4.4003,2272.6,2272.4,19.45370247]
[1725689741815,0.46097312,2272.8,2272.4,23.85417247]
[1725689742114,0.46097312,2272.8,2272.5,2.36397218]
[1725689742681,0.46097312,2272.8,2272.6,0.05207427]
[1725689743679,4.86085312,2272.8,2272.6,0.05207427]
[1725689744770,4.86085312,2272.8,2272.6,19.45370247]
[1725689747469,0.46097312,2272.8,2272.6,19.45370247]
[1725689748903,0.46097312,2272.8,2272.6,24.13611807]
[1725689749110,0.022977,2273.0,2272.7,19.48961991]
[1725689749603,4.422497,2273.0,2272.8,0.05143773]
[1725689749771,4.422497,2273.0,2272.7,19.4016282]
[1725689749976,4.422497,2273.0,2272.9,0.05143773]
[1725689750281,0.022977,2273.0,2272.8,19.4016282]
[1725689750484,4.422447,2273.0,2272.9,0.05143773]
[1725689751578,0.022977,2273.0,2272.9,0.05143773]
[1725689751787,4.422447,2273.0,2272.9,0.05143773]
[1725689752814,8.821917,2273.0,2272.9,0.05143773]
[1725689754007,4.39971,2272.9,2272.7,19.4016282]
[1725689754709,4.39971,2272.9,2272.7,21.34179102]
[1725689755006,4.39971,2272.9,2272.8,0.05143773]
[1725689755211,4.39971,2272.9,2272.7,19.4016282]
[1725689755405,4.39971,2272.9,2272.8,0.0506951]
[1725689755573,4.34971,2272.9,2272.7,19.4016282]
[1725689755774,4.422447,2273.0,2272.8,0.0506951]
[1725689756008,4.422447,2273.0,2272.8,2.4348]
[1725689756214,4.422447,2273.0,2272.9,0.0506951]
[1725689757097,0.022977,2273.0,2272.9,0.0506951]
[1725689757337,4.422447,2273.0,2272.9,0.0506951]
[1725689757693,4.3997,2272.9,2272.7,19.4016282]
[1725689759623,4.3997,2272.9,2272.8,19.4016282]
[1725689760818,8.7994,2272.9,2272.8,19.4016282]
[1725689763248,4.422537,2273.0,2272.8,19.4016282]
[1725689765614,4.422537,2273.0,2272.9,19.4016282]
[1725689769343,0.022977,2273.0,2272.9,23.72829102]
[1725689769843,0.022977,2273.0,2272.9,21.39054614]
[1725689772734,4.422447,2273.0,2272.9,21.39054614]
[1725689772946,4.422447,2273.0,2272.9,19.45038332]
[1725689773946,8.821917,2273.0,2272.9,19.45038332]
[1725689774150,4.422447,2273.0,2272.9,19.45038332]
[1725689774715,4.422447,2273.0,2272.9,0.04875512]
[1725689775256,4.39969,2272.9,2272.7,19.4016282]
[1725689775922,4.39985,2272.8,2272.7,19.4016282]
[1725689776450,4.39969,2272.9,2272.7,19.4016282]
[1725689777350,0.022977,2273.0,2272.7,21.34179102]
[1725689777523,0.022977,2273.0,2272.8,0.08798618]
[1725689778415,0.022977,2273.0,2272.8,2.47448618]
[1725689779419,0.022977,2273.0,2272.8,6.87432618]
[1725689779942,0.022977,2273.0,2272.8,2.47448618]
[1725689780138,0.022977,2273.0,2272.9,2.82163072]
[1725689780661,0.022977,2273.0,2272.9,22.22325892]
[1725689783356,0.022977,2273.0,2272.9,2.82163072]
[1725689783589,0.022977,2273.0,2272.9,2.90961309]
[1725689784832,0.022977,2273.0,2272.9,2.95805005]
[1725689787435,0.022977,2273.0,2272.9,31.15899825]
[1725689787635,0.022977,2273.0,2272.9,37.44573173]
[1725689787945,0.022977,2273.0,2272.9,38.55125126]
[1725689788163,0.022977,2273.0,2272.9,42.46704162]
[1725689788468,0.00072867,2273.0,2272.9,38.94826098]
[1725689789035,0.00072867,2273.0,2272.9,42.42884826]
[1725689789233,0.00072867,2273.0,2272.9,50.94216283]
[1725689789472,0.00072867,2273.0,2272.9,50.39053373]
[1725689789685,0.00072867,2273.0,2272.9,46.86609835]